[Event "Zonal 2.3 Absoluto 2022"]
[Site "San Pedro de Macoris"]
[Date "2022.03.22"]
[Round "4.2"]
[White "Barrientos, Sergio E"]
[Black "Camacho Campusano, David Daniel"]
[Result "1-0"]
[ECO "E70"]
[WhiteElo "2468"]
[BlackElo "2205"]
[Annotator "ChessBase"]
[PlyCount "63"]
[EventDate "2022.03.20"]
[EventCountry "DOM"]
[SourceTitle "playchess.com"]
[Source "ChessBase"]
[SourceQuality "1"]
[TimeControl "40/5400+30:1800+30"]

1. c4 {[%emt 0:03:22]} Nf6 {[%emt 0:00:20]} 2. Nc3 {[%emt 0:00:08]} g6 {[%emt 0:01:59]} 3. e4 {[%emt 0:02:31]} d6 {[%emt 0:00:24]} 4. d4 {[%emt 0:00:08]} Bg7 {[%emt 0:00:17]} 5. Nge2 {[%emt 0:01:18]} O-O {[%emt 0:00:56]} 6. h4 {[%emt 0:00:15]} c5 {[%emt 0:02:58]} 7. d5 {[%emt 0:00:58]} h5 {[%emt 0:01:34]} 8. Bg5 {[%emt 0:00:31]} b5 {[%emt 0:00:19]} 9. cxb5 {[%emt 0:01:49]} a6 {[%emt 0:00:56]} 10. a4 {[%emt 0:01:11]} Qa5 {[%emt 0:03:03]} 11. Bd2 {[%emt 0:00:48]} Nbd7 {[%emt 0:05:47]} 12. Ng3 {[%emt 0:02:13]} Ne5 {[%emt 0:07:20]} 13. Be2 {[%emt 0:01:11]} e6 {[%emt 0:11:18]} 14. O-O {[%emt 0:02:07]} Qc7 {[%emt 0:06:26]} 15. Bf4 {[%emt 0:16:17]} exd5 {[%emt 0:11:28]} 16. Nxd5 {[%emt 0:09:02]} Nxd5 {[%emt 0:01:41]} 17. Qxd5 {[%emt 0:00:24]} Be6 {[%emt 0:06:38]} 18. Qd2 {[%emt 0:02:01]} c4 {[%emt 0:05:09]} 19. Bh6 {[%emt 0:09:37]} axb5 {[%emt 0:04:08]} 20. Bxg7 {[%emt 0:11:52]} Kxg7 {[%emt 0:00:31]} 21. axb5 {[%emt 0:00:02]} Rxa1 {[%emt 0:04:15]} 22. Rxa1 {[%emt 0:00:10]} Rb8 {[%emt 0:01:41]} 23. Qg5 {[%emt 0:02:44]} Kf8 {[%emt 0:15:21]} 24. f4 {[%emt 0:04:18]} Qc5+ {[%emt 0:01:58]} 25. Kh1 {[%emt 0:00:19]} Ng4 {[%emt 0:01:10]} 26. f5 {[%emt 0:03:02]} Qe5 {[%emt 0:02:25]} 27. Bxg4 {[%emt 0:01:16]} Qxg3 {[%emt 0:01:54]} 28. fxe6 {[%emt 0:00:45]} Qxg4 {[%emt 0:00:33]} 29. Qf6 {[%emt 0:00:21]} Kg8 {[%emt 0:01:56]} 30. Qxf7+ {[%emt 0:00:21]} Kh8 {[%emt 0:00:07]} 31. Qf6+ {[%emt 0:24:59]} Kh7 {[%emt 0:01:24]} 32. Qg5 1-0

[Event "Zonal 2.3 Absoluto 2022"]
[Site "San Pedro de Macoris"]
[Date "2022.03.22"]
[Round "4.4"]
[White "Sanchez Alvarez, Roberto Carlos"]
[Black "Mesa Cruz, Juan Carlos"]
[Result "1-0"]
[ECO "E32"]
[WhiteElo "2407"]
[BlackElo "1994"]
[Annotator "NA"]
[PlyCount "77"]
[EventDate "2022.03.20"]
[EventCountry "DOM"]
[SourceTitle "playchess.com"]
[Source "ChessBase"]
[SourceQuality "1"]
[TimeControl "40/5400+30:1800+30"]

{[%evp 10,58,10,6,32767,32767,32767,32767,160,151,162,167,195,211,207,193,340,347,339,373,373,317,402,424,416,369,414,197,32767,151,196,107,102,106,113,107,112,110,126,32767,32767,32767,145,32767,32767,32767,32767,166,177,171,173]} 1. d4 {[%emt 0:09:09]} Nf6 {[%emt 0:00:29]} 2. c4 {[%emt 0:00:10]} e6 {[%emt 0:00:14]} 3. Nc3 {[%emt 0:01:07]} Bb4 {[%emt 0:00:32]} 4. Qc2 {[%emt 0:00:15]} O-O {[%emt 0:01:31]} 5. Nf3 {[%emt 0:03:21]} d5 {[%emt 0:11:08]} 6. Bg5 {[%emt 0:00:26]} c5 {[%emt 0:06:24]} 7. dxc5 {[%emt 0:01:05]} d4 {[%emt 0:05:00]} 8. O-O-O {[%emt 0:00:32]} e5 {[%emt 0:14:21] [#]} (8... Qa5 $14 9. Nxd4 (9. Rxd4 Nbd7 $16) 9... Bxc3 10. Bxf6 (10. Qxc3 Qxc3+ 11. bxc3 Ne4 $11) (10. bxc3 Nbd7 $14) 10... Bb4) 9. Nd5 $1 {[%emt 0:15:33]} Bxc5 {[%emt 0:09:01]} 10. Nxe5 {[%emt 0:00:40]} Qd6 {[%emt 0:00:33]} 11. Bxf6 {[%emt 0:02:49]} gxf6 {[%emt 0:46:47]} 12. Nf3 {[%emt 0:00:38]} b5 {[%emt 0:00:00]} (12... Nc6 $142 13. a3 Ne7) 13. Nxd4 {[%emt 0:10:39]} bxc4 {[%emt 0:00:00]} 14. Nb5 {[%emt 0:03:35]} Qe5 {[%emt 0:00:00]} 15. e4 {[%emt 0:13:31]} ({But not} 15. Qxc4 Bxf2 16. Nbc7 Bb7 $18) ({Resist} 15. e3 Nd7 16. Kb1 Rb8 $18) 15... Na6 {[%emt 0:00:00]} 16. f4 {[%emt 0:09:22]} Qe6 {[%emt 0:00:00]} 17. Bxc4 {[%emt 0:01:04]} Bb7 {[%emt 0:00:00]} 18. Ndc7 {[%emt 0:11:24]} (18. Qc3 $142 Kg7 19. b4 Nxb4 20. Nxb4 Qxe4 21. Rhe1 Qxf4+ 22. Kb2 Bxb4 23. Qxb4) 18... Qxe4 {[%emt 0:00:00]} 19. Qxe4 {[%emt 0:04:39]} ({Weaker is} 19. Nxa8 Qxf4+ 20. Rd2 (20. Kb1 Nb4 $11) 20... Be3 $11) 19... Bxe4 {[%emt 0:00:00]} 20. Rhe1 {[%emt 0:00:10]} ({Don't blunder} 20. Nxa6 $2 Be3+ 21. Rd2 Rfd8 $19) (20. Nxa8 $18 Be3+ {[#]} 21. Rd2 $1 Bxa8 22. Rhd1 (22. Re1 Bxf4 23. Nxa7 Nc5 $16)) 20... Nxc7 {[%emt 0:00:29]} 21. Nxc7 {[%emt 0:00:01]} Rac8 {[%emt 0:00:33]} 22. Rxe4 {[%emt 0:00:37]} Rxc7 {[%emt 0:00:05]} 23. b3 {[%emt 0:00:08]} Ba3+ {[%emt 0:02:09]} 24. Kc2 {[%emt 0:00:03]} a5 {[%emt 0:01:25]} 25. Rd5 {[%emt 0:01:34]} Rc5 {[%emt 0:00:21]} 26. Rd7 {[%emt 0:00:08]} Rfc8 {[%emt 0:00:34]} 27. Kd3 {[%emt 0:00:32]} R5c7 {[%emt 0:00:38]} 28. Bxf7+ {[%emt 0:01:32]} Kf8 {[%emt 0:00:00]} 29. Rxc7 {[%emt 0:01:12]} Rxc7 $18 {[%emt 0:00:02]} 30. Be6 {[%emt 0:01:23]} Rc6 {[%emt 0:02:37]} 31. Bd5 {[%emt 0:01:35]} Rc1 {[%emt 0:00:13]} 32. Ra4 {[%emt 0:03:03]} Bb4 {[%emt 0:00:50]} 33. a3 {[%emt 0:00:02]} Rd1+ {[%emt 0:00:17]} 34. Ke2 {[%emt 0:01:32]} Rd2+ {[%emt 0:00:44]} 35. Ke3 {[%emt 0:00:01]} Bc3 {[%emt 0:00:32]} 36. Rc4 {[%emt 0:00:15]} Rxd5 {[%emt 0:00:30]} 37. Rxc3 {[%emt 0:00:02]} f5 {[%emt 0:00:02]} 38. b4 {[%emt 0:03:08]} a4 {[%emt 0:00:54]} 39. Rc5 {[%emt 0:00:11]} 1-0

[Event "Zonal 2.3 Absoluto 2022"]
[Site "San Pedro de Macoris"]
[Date "2022.03.23"]
[Round "6.6"]
[White "Camacho Campusano, David Daniel"]
[Black "Perez Rodriguez, Luis Manuel"]
[Result "1/2-1/2"]
[ECO "A28"]
[WhiteElo "2205"]
[BlackElo "2324"]
[Annotator "ChessBase"]
[PlyCount "28"]
[EventDate "2022.03.20"]
[EventCountry "DOM"]
[SourceTitle "playchess.com"]
[Source "ChessBase"]
[SourceQuality "1"]
[TimeControl "40/5400+30:1800+30"]

1. c4 {[%emt 1:31:00]} e5 {[%emt 0:01:45]} 2. Nc3 {[%emt 0:00:00]} Nf6 {[%emt 0:00:20]} 3. Nf3 {[%emt 0:00:00]} Nc6 {[%emt 0:00:22]} 4. e4 {[%emt 0:00:00]} Bc5 {[%emt 0:01:25]} 5. Nxe5 {[%emt 0:00:00]} Nxe5 {[%emt 0:00:04]} 6. d4 {[%emt 0:00:00]} Bb4 {[%emt 0:00:06]} 7. dxe5 {[%emt 0:00:00]} Nxe4 {[%emt 0:00:39]} 8. Qf3 {[%emt 0:00:00]} f5 {[%emt 0:05:49]} 9. Bd3 {[%emt 0:00:00]} d5 {[%emt 0:22:51]} 10. O-O {[%emt 0:00:00]} Bxc3 {[%emt 0:09:58]} 11. bxc3 {[%emt 0:00:00]} O-O {[%emt 0:07:25]} 12. cxd5 {[%emt 0:00:00]} Qxd5 {[%emt 0:00:17]} 13. Bxe4 {[%emt 0:00:00]} Qxe4 {[%emt 0:03:15]} 14. Qxe4 {[%emt 0:00:00]} fxe4 {[%emt 0:43:14]} 1/2-1/2

[Event "Zonal 2.3 Absoluto 2022"]
[Site "San Pedro de Macoris"]
[Date "2022.03.24"]
[Round "7.3"]
[White "Barrientos, Sergio E"]
[Black "Sanchez Alvarez, Roberto Carlos"]
[Result "0-1"]
[ECO "D41"]
[WhiteElo "2468"]
[BlackElo "2407"]
[Annotator "ChessBase"]
[PlyCount "84"]
[EventDate "2022.03.20"]
[EventCountry "DOM"]
[SourceTitle "playchess.com"]
[Source "ChessBase"]
[SourceQuality "1"]
[TimeControl "40/5400+30:1800+30"]

1. d4 {[%emt 0:06:23]} Nf6 {[%emt 0:16:53]} 2. c4 {[%emt 0:00:06]} e6 {[%emt 0:00:07]} 3. Nf3 {[%emt 0:00:05]} d5 {[%emt 0:00:10]} 4. Nc3 {[%emt 0:00:09]} c5 {[%emt 0:00:37]} 5. cxd5 {[%emt 0:00:42]} Nxd5 {[%emt 0:00:09]} 6. e4 {[%emt 0:07:01]} Nxc3 7. bxc3 {[%emt 0:00:02]} cxd4 {[%emt 0:00:36]} 8. cxd4 {[%emt 0:00:05]} Bb4+ {[%emt 0:00:05]} 9. Bd2 {[%emt 0:00:06]} Bxd2+ {[%emt 0:00:08]} 10. Qxd2 {[%emt 0:00:06]} O-O {[%emt 0:00:11]} 11. Bc4 {[%emt 0:00:04]} Nd7 {[%emt 0:00:07]} 12. O-O {[%emt 0:00:06]} b6 {[%emt 0:00:03]} 13. a4 {[%emt 0:02:23]} Bb7 {[%emt 0:00:16]} 14. Rfe1 {[%emt 0:04:00]} h6 {[%emt 0:00:17]} 15. h3 {[%emt 0:01:53]} Nf6 {[%emt 0:05:41]} 16. Bd3 {[%emt 0:01:06]} Qc7 {[%emt 0:12:25]} 17. a5 {[%emt 0:06:14]} a6 {[%emt 0:03:19]} 18. Rec1 {[%emt 0:10:10]} Qd8 {[%emt 0:00:13]} 19. axb6 {[%emt 0:01:12]} Nxe4 {[%emt 0:11:36]} 20. Qb2 {[%emt 0:29:02]} Nf6 {[%emt 0:10:46]} 21. Ne5 {[%emt 0:00:41]} Nd5 {[%emt 0:00:20]} 22. Be4 {[%emt 0:04:35]} Rb8 {[%emt 0:01:12]} 23. Bxd5 {[%emt 0:04:47]} Bxd5 {[%emt 0:08:01]} 24. Rxa6 {[%emt 0:02:11]} Qg5 {[%emt 0:00:23]} 25. Ng4 {[%emt 0:08:17]} f5 {[%emt 0:02:21]} 26. Ne3 {[%emt 0:00:08]} Bb7 {[%emt 0:00:33]} 27. Ra5 {[%emt 0:01:08]} Qg6 {[%emt 0:11:10]} 28. f4 {[%emt 0:00:13]} Be4 {[%emt 0:00:12]} 29. Rb5 {[%emt 0:01:13]} Rb7 {[%emt 0:07:40]} 30. Rc7 {[%emt 0:00:54]} Rfb8 {[%emt 0:00:20]} 31. Kh2 {[%emt 0:04:46]} Qe8 {[%emt 0:00:33]} 32. Rxb7 {[%emt 0:00:30]} Rxb7 {[%emt 0:00:11]} 33. Nc4 {[%emt 0:02:07]} Bd3 {[%emt 0:02:28]} 34. Qb3 {[%emt 0:02:11]} Qc6 {[%emt 0:00:53]} 35. Rc5 {[%emt 0:02:24]} Qe4 {[%emt 0:00:40]} 36. Qb2 {[%emt 0:00:39]} Qxf4+ {[%emt 0:04:17]} 37. g3 {[%emt 0:00:01]} Qf1 {[%emt 0:00:08]} 38. Ne3 {[%emt 0:00:59]} Rxb6 {[%emt 0:00:36]} 39. Qg2 {[%emt 0:00:48]} Qb1 {[%emt 0:02:31]} 40. Qa8+ {[%emt 0:00:00]} Kh7 {[%emt 0:00:00]} 41. Rc8 {[%emt 0:02:47]} Rb2+ {[%emt 0:01:34]} 42. Ng2 {[%emt 0:00:01]} Rxg2+ {[%emt 0:31:48]} 0-1

[Event "Zonal 2.3 Absoluto 2022"]
[Site "San Pedro de Macoris"]
[Date "2022.03.24"]
[Round "7.4"]
[White "Arvelo Leo, Gian Carlo"]
[Black "Cardoso Cardoso, Jose Gabriel"]
[Result "0-1"]
[ECO "D31"]
[WhiteElo "2080"]
[BlackElo "2461"]
[Annotator "ChessBase"]
[PlyCount "62"]
[EventDate "2022.03.20"]
[EventCountry "DOM"]
[SourceTitle "playchess.com"]
[Source "ChessBase"]
[SourceQuality "1"]
[TimeControl "40/5400+30:1800+30"]

1. d4 {[%emt 0:07:20]} d5 {[%emt 0:00:22]} 2. c4 {[%emt 0:01:25]} e6 {[%emt 0:00:08]} 3. Nc3 {[%emt 0:00:52]} Bb4 {[%emt 0:00:09]} 4. a3 {[%emt 0:01:18]} Bxc3+ {[%emt 0:00:09]} 5. bxc3 {[%emt 0:00:07]} c6 {[%emt 0:00:26]} 6. e3 {[%emt 0:00:56]} Nf6 {[%emt 0:00:19]} 7. Bd3 {[%emt 0:01:08]} e5 {[%emt 0:00:23]} 8. Ne2 {[%emt 0:09:49]} e4 {[%emt 0:00:27]} 9. Bb1 {[%emt 0:00:27]} dxc4 {[%emt 0:11:48]} 10. Ng3 {[%emt 0:05:05]} Nd5 {[%emt 0:00:59]} 11. Bd2 {[%emt 0:03:01]} f5 {[%emt 0:00:44]} 12. Qh5+ {[%emt 0:01:15]} g6 {[%emt 0:00:44]} 13. Qh6 {[%emt 0:00:11]} Qf6 {[%emt 0:02:18]} 14. O-O {[%emt 0:03:47]} Qf8 {[%emt 0:05:48]} 15. Qg5 {[%emt 0:02:30]} Qe7 {[%emt 0:03:05]} 16. Qh6 {[%emt 0:05:08]} Nd7 {[%emt 0:04:47]} 17. f3 {[%emt 0:02:19]} N7f6 {[%emt 0:00:06]} 18. Qh4 {[%emt 0:15:56]} h6 {[%emt 0:39:28]} 19. fxe4 {[%emt 0:08:30]} g5 {[%emt 0:00:12]} 20. Qh3 {[%emt 0:00:34]} fxe4 {[%emt 0:01:41]} 21. Nf5 {[%emt 0:01:03]} Bxf5 {[%emt 0:01:04]} 22. Rxf5 {[%emt 0:01:25]} Qd7 {[%emt 0:04:50]} 23. Ba2 {[%emt 0:06:37]} O-O-O {[%emt 0:00:50]} 24. Raf1 {[%emt 0:01:24]} Ne8 {[%emt 0:00:05]} 25. Qh5 {[%emt 0:08:54]} Ng7 {[%emt 0:00:19]} 26. Qh3 {[%emt 0:08:27]} Nxf5 {[%emt 0:00:21]} 27. Rxf5 {[%emt 0:00:08]} Rhf8 {[%emt 0:01:35]} 28. Rxf8 {[%emt 0:02:18]} Rxf8 {[%emt 0:00:04]} 29. Qxh6 {[%emt 0:00:42]} Qf5 {[%emt 0:00:38]} 30. h3 {[%emt 0:00:13]} Qf1+ {[%emt 0:00:24]} 31. Kh2 {[%emt 0:00:12]} Rf2 {[%emt 0:00:09]} 0-1

[Event "Zonal 2.3 Absoluto 2022"]
[Site "San Pedro de Macoris"]
[Date "2022.03.24"]
[Round "7.5"]
[White "Duran Vega, Sergio"]
[Black "Torres, Juan Camilo"]
[Result "1-0"]
[ECO "D94"]
[WhiteElo "2370"]
[BlackElo "2319"]
[Annotator "NA"]
[PlyCount "112"]
[EventDate "2022.03.20"]
[EventCountry "DOM"]
[SourceTitle "playchess.com"]
[Source "ChessBase"]
[SourceQuality "1"]
[TimeControl "40/5400+30:1800+30"]

1. d4 {[%emt 0:00:47]} d5 {[%emt 0:06:42]} 2. Nf3 {[%emt 0:00:29]} Nf6 {[%emt 0:00:39]} 3. c4 {[%emt 0:00:28]} c6 {[%emt 0:00:15]} 4. e3 {[%emt 0:00:24]} g6 {[%emt 0:00:33]} 5. Be2 {[%emt 0:00:37]} Bg7 {[%emt 0:00:10]} 6. O-O {[%emt 0:00:08]} O-O {[%emt 0:00:51]} 7. Nc3 {[%emt 0:00:36]} Ne4 {[%emt 0:06:51]} 8. Qb3 {[%emt 0:02:48]} dxc4 {[%emt 0:02:07]} 9. Bxc4 {[%emt 0:01:05]} Nd6 {[%emt 0:00:15]} 10. Be2 {[%emt 0:01:44]} Qb6 {[%emt 0:02:32]} (10... Bf5 $11) 11. Qc2 {[%emt 0:08:42]} Bf5 {[%emt 0:06:40]} 12. e4 {[%emt 0:02:05]} Bg4 {[%emt 0:02:06]} 13. Rd1 {[%emt 0:07:17]} Nd7 {[%emt 0:06:29]} 14. Be3 {[%emt 0:07:16]} Rac8 $14 {[%emt 0:11:48]} 15. Rac1 {[%emt 0:24:41]} Qa5 {[%emt 0:05:58]} 16. Bd2 {[%emt 0:09:48]} Bxf3 {[%emt 0:12:00]} 17. Bxf3 {[%emt 0:00:25]} e5 {[%emt 0:04:00]} 18. Bg4 {[%emt 0:05:50]} f5 {[%emt 0:09:08]} 19. exf5 {[%emt 0:02:21]} Nxf5 {[%emt 0:03:56]} 20. Ne4 {[%emt 0:10:16]} Qxa2 {[%emt 0:03:53]} 21. Bb4 {[%emt 0:01:20]} exd4 {[%emt 0:06:42]} 22. Bxf8 {[%emt 0:02:19]} Rxf8 {[%emt 0:00:11]} 23. Bxf5 {[%emt 0:02:31]} gxf5 {[%emt 0:02:36]} 24. Nd6 {[%emt 0:00:18]} Qd5 {[%emt 0:01:57]} 25. Nxb7 {[%emt 0:00:17]} Rb8 {[%emt 0:01:28]} 26. Nc5 {[%emt 0:01:03]} Nxc5 {[%emt 0:01:50]} 27. Qxc5 {[%emt 0:00:02]} Qxc5 {[%emt 0:00:32]} 28. Rxc5 {[%emt 0:00:11]} Rxb2 {[%emt 0:00:44]} 29. Rxc6 {[%emt 0:00:20]} Rb7 {[%emt 0:01:33]} 30. Kf1 {[%emt 0:02:59]} Kf7 {[%emt 0:00:22]} 31. Ra6 {[%emt 0:00:23]} Bf8 {[%emt 0:00:37]} 32. Rxd4 {[%emt 0:00:48]} Rb1+ {[%emt 0:00:10]} 33. Ke2 {[%emt 0:00:04]} Bc5 {[%emt 0:00:15]} 34. Rd7+ {[%emt 0:02:51]} Ke8 {[%emt 0:00:24]} 35. Rd2 {[%emt 0:01:49]} Bb6 {[%emt 0:00:25]} 36. Ra4 {[%emt 0:00:39]} Rc1 {[%emt 0:00:47]} 37. Rh4 {[%emt 0:01:02]} Rc7 {[%emt 0:01:00]} 38. Rh5 {[%emt 0:00:36]} Rg7 {[%emt 0:00:31]} 39. Kf3 {[%emt 0:00:19]} Ke7 {[%emt 0:00:19]} 40. Rxf5 {[%emt 0:00:00]} Ke6 {[%emt 0:00:00]} 41. g4 {[%emt 0:01:01]} Rc7 {[%emt 0:01:35]} 42. h4 {[%emt 0:03:47]} Rc3+ {[%emt 0:02:37]} 43. Kg2 {[%emt 0:02:33]} Rc4 {[%emt 0:04:45]} 44. f3 {[%emt 0:01:02]} Bc5 {[%emt 0:00:56]} 45. Re2+ {[%emt 0:02:51]} Kd6 {[%emt 0:00:19]} 46. Ra2 {[%emt 0:01:36]} Bb6 {[%emt 0:01:31]} 47. h5 {[%emt 0:00:38]} a5 {[%emt 0:03:52]} 48. Rfxa5 {[%emt 0:01:42]} Bxa5 {[%emt 0:00:06]} 49. Rxa5 {[%emt 0:00:04]} Rc7 {[%emt 0:20:03]} 50. Rf5 {[%emt 0:00:26]} Ke6 {[%emt 0:00:00]} 51. Kg3 {[%emt 0:22:42]} Rc4 {[%emt 0:00:00]} 52. Rf4 {[%emt 0:00:00]} Rc1 {[%emt 0:00:00]} 53. Rf8 {[%emt 0:00:00]} Rc4 {[%emt 0:00:00]} 54. f4 {[%emt 0:00:00]} Rb4 {[%emt 0:00:00]} 55. Rh8 {[%emt 0:00:00]} Rb7 {[%emt 0:00:00]} 56. g5 {[%emt 0:00:00]} Kd5 {[%emt 0:00:00]} 1-0

[Event "Zonal 2.3 Absoluto 2022"]
[Site "San Pedro de Macoris"]
[Date "2022.03.24"]
[Round "7.6"]
[White "Perez Rodriguez, Luis Manuel"]
[Black "Araujo Sanchez, Josue"]
[Result "1-0"]
[ECO "B22"]
[WhiteElo "2324"]
[BlackElo "2264"]
[Annotator "NA"]
[PlyCount "43"]
[EventDate "2022.03.20"]
[EventCountry "DOM"]
[SourceTitle "playchess.com"]
[Source "ChessBase"]
[SourceQuality "1"]
[TimeControl "40/5400+30:1800+30"]

1. e4 {[%emt 0:00:06]} c5 {[%emt 0:25:26]} 2. c3 {[%emt 0:00:48]} Nf6 {[%emt 0:00:10]} 3. e5 {[%emt 0:00:30]} Nd5 {[%emt 0:00:34]} 4. Nf3 {[%emt 0:00:29]} Nc6 {[%emt 0:00:24]} 5. Bc4 {[%emt 0:06:33]} Nb6 {[%emt 0:02:01]} 6. Bb3 {[%emt 0:01:01]} d6 {[%emt 0:02:53]} 7. exd6 {[%emt 0:04:01]} Qxd6 {[%emt 0:01:10]} 8. O-O {[%emt 0:02:18]} Bf5 {[%emt 0:06:10]} 9. d4 {[%emt 0:07:48]} e6 {[%emt 0:12:12]} 10. Na3 $11 {[%emt 0:12:50]} Qd7 {[%emt 0:06:07]} 11. Be3 {[%emt 0:12:48]} cxd4 {[%emt 0:02:02]} 12. Nxd4 {[%emt 0:01:17]} Nxd4 {[%emt 0:00:12]} 13. Bxd4 {[%emt 0:01:37]} Bxa3 {[%emt 0:02:26]} 14. bxa3 {[%emt 0:00:17]} O-O {[%emt 0:00:57]} 15. Qe2 {[%emt 0:11:31]} Qe7 {[%emt 0:08:27]} 16. Rfe1 {[%emt 0:08:38]} Nd7 {[%emt 0:23:09]} 17. Qb5 {[%emt 0:03:37]} Qd6 {[%emt 0:03:43]} 18. Qxb7 {[%emt 0:04:31]} e5 {[%emt 0:00:44]} 19. Be3 {[%emt 0:01:25]} Qxa3 {[%emt 0:00:36]} 20. Rad1 {[%emt 0:01:35]} Nf6 {[%emt 0:01:07]} 21. Qb5 {[%emt 0:03:00]} Rfe8 {[%emt 0:00:00]} 22. Bc5 {[%emt 0:00:21]} 1-0

[Event "Zonal 2.3 Absoluto 2022"]
[Site "San Pedro de Macoris"]
[Date "2022.03.25"]
[Round "8.3"]
[White "Ortiz Suarez, Isan Reynaldo"]
[Black "Perez Rodriguez, Luis Manuel"]
[Result "1-0"]
[ECO "A11"]
[WhiteElo "2531"]
[BlackElo "2324"]
[Annotator "ChessBase"]
[PlyCount "50"]
[EventDate "2022.03.20"]
[EventCountry "DOM"]
[SourceTitle "playchess.com"]
[Source "ChessBase"]
[SourceQuality "1"]
[TimeControl "40/5400+30:1800+30"]

1. Nf3 {[%emt 0:07:27]} d5 {[%emt 0:08:57]} 2. d4 {[%emt 0:01:13]} Nf6 {[%emt 0:00:56]} 3. c4 {[%emt 0:00:08]} c6 {[%emt 0:01:25]} 4. g3 {[%emt 1:23:42]} g6 {[%emt 0:03:53]} 5. Bg2 {[%emt 0:00:00]} Bg7 {[%emt 0:04:13]} 6. O-O {[%emt 0:00:00]} O-O {[%emt 0:02:43]} 7. b3 {[%emt 0:00:00]} a5 {[%emt 0:13:44]} 8. Nc3 {[%emt 0:00:00]} Ne4 {[%emt 0:06:31]} 9. Bb2 {[%emt 0:00:00]} Nxc3 {[%emt 0:03:23]} 10. Bxc3 {[%emt 0:00:00]} Nd7 {[%emt 0:01:59]} 11. Rc1 {[%emt 0:00:00]} a4 {[%emt 0:10:02]} 12. cxd5 {[%emt 0:00:00]} cxd5 {[%emt 0:00:48]} 13. Bb4 {[%emt 0:00:00]} Re8 {[%emt 0:11:58]} 14. bxa4 {[%emt 0:00:00]} Nb6 {[%emt 0:04:21]} 15. Qb3 {[%emt 0:00:00]} Nxa4 {[%emt 0:04:46]} 16. Ne5 {[%emt 0:00:00]} Be6 {[%emt 0:02:24]} 17. Nd3 {[%emt 0:00:00]} Bxd4 {[%emt 0:05:14]} 18. Nf4 {[%emt 0:00:00]} Bd7 {[%emt 0:02:19]} 19. Rfd1 {[%emt 0:00:00]} e5 {[%emt 0:03:25]} 20. Bxd5 {[%emt 0:00:00]} Qf6 {[%emt 0:02:40]} 21. e3 {[%emt 0:00:00]} Bg4 {[%emt 0:03:47]} 22. Rd2 {[%emt 0:00:00]} Nb6 {[%emt 0:01:21]} 23. Bxb7 {[%emt 0:00:00]} Rad8 {[%emt 0:00:38]} 24. Ng2 {[%emt 0:00:00]} Be6 {[%emt 0:00:31]} 25. Qd1 {[%emt 0:00:00]} Nc4 {[%emt 0:01:02]} 1-0